bitfinex/quotes_SOLUSD_20240826
["timestamp","ask_amount","ask_price","bid_price","bid_amount"]
[1724700331704,6.319,158.26,158.24,0.827587]
[1724700332018,6.3191,158.25,158.24,0.827587]
[1724700333124,6.3184,158.27,158.24,0.827587]
[1724700333621,6.3187,158.26,158.24,0.827587]
[1724700335301,20.0,158.29,158.24,0.827587]
[1724700335904,6.3186,158.27,158.24,0.827587]
[1724700336900,6.3187,158.26,158.24,0.827587]
[1724700337924,6.3191,158.25,158.24,0.827587]
[1724700347946,1.26071188,158.28,158.24,0.827587]
[1724700348145,45.0,158.28,158.24,0.827587]
[1724700348636,20.0,158.27,158.24,0.827587]
[1724700349449,6.3191,158.25,158.24,0.827587]
[1724700350119,101.3191,158.25,158.24,0.827587]
[1724700350314,56.3191,158.25,158.24,0.827587]
[1724700352656,26.3191,158.25,158.24,0.827587]
[1724700356448,56.3191,158.25,158.24,0.827587]
[1724700357152,26.3191,158.25,158.24,0.827587]
[1724700358446,56.3191,158.25,158.24,0.827587]
[1724700362347,30.0,158.25,158.24,0.827587]
[1724700362742,6.3176,158.29,158.25,6.3188]
[1724700363449,6.3182,158.28,158.24,16.625687]
[1724700363958,6.3182,158.28,158.24,22.945087]
[1724700364536,6.3182,158.28,158.24,16.625687]
[1724700364885,6.3183,158.27,158.24,0.827587]
[1724700365940,6.318,158.28,158.24,0.827587]
[1724700366145,6.318,158.28,158.24,7.146887]
[1724700366751,6.3176,158.29,158.24,7.146887]
[1724700367269,381.3,158.32,158.24,0.827587]
[1724700367449,20.0,158.31,158.24,0.827587]
[1724700367777,6.3163,158.32,158.28,6.3179]
[1724700367961,6.316,158.33,158.29,6.3174]
[1724700368272,6.3156,158.34,158.29,6.3174]
[1724700368649,21.8923,158.37,158.3,6.3168]
[1724700368650,6.3151,158.35,158.3,6.3168]
[1724700369266,6.3148,158.36,158.31,6.3167]
[1724700369459,6.3148,158.36,158.32,6.3163]
[1724700369658,6.3148,158.36,158.31,6.3166]
[1724700370449,15.7833,158.4,158.31,6.3166]
[1724700370450,7.57581188,158.35,158.31,6.3166]
[1724700370662,6.3151,158.35,158.31,6.3166]
[1724700371050,6.3151,158.35,158.3,6.317]
[1724700371253,6.3156,158.34,158.3,6.317]
[1724700371756,15.7854,158.38,158.28,21.6573]
[1724700371960,65.0,158.37,158.28,21.6573]
[1724700372658,65.0,158.37,158.29,6.3173]
[1724700372864,21.26071188,158.37,158.29,6.3173]
[1724700373172,20.0,158.37,158.29,6.3173]
[1724700373367,6.3155,158.34,158.3,6.3171]
[1724700374470,6.3152,158.35,158.3,6.3171]
[1724700375647,6.3158,158.34,158.29,6.3175]
[1724700376670,6.3152,158.35,158.28,31.1337]
[1724700376876,15.782,158.41,158.28,15.3395]
[1724700377092,15.782,158.41,158.29,58.49901557]
[1724700377253,15.782,158.41,158.29,57.23591848]
[1724700377654,15.782,158.41,158.32,22.1065]
[1724700377973,6.3143,158.37,158.33,6.3158]
[1724700378688,1.26071188,158.36,158.29,45.0]
[1724700378987,6.3154,158.35,158.3,6.3167]
[1724700381949,6.3158,158.34,158.29,6.3175]
[1724700382388,6.3158,158.34,158.3,6.317]
[1724700383991,15.7845,158.39,158.3,15.7924]
[1724700384198,6.3151,158.35,158.31,6.3166]
[1724700384491,6.3151,158.35,158.3,22.1093]
[1724700385052,6.3155,158.34,158.3,22.1093]
[1724700385553,6.316,158.33,158.28,15.3395]
[1724700385783,15.7864,158.37,158.28,15.3395]
[1724700385784,6.3168,158.31,158.28,15.3395]
[1724700386179,6.3164,158.32,158.28,15.3395]
[1724700388681,6.3164,158.32,158.28,21.6573]
[1724700389400,15.7864,158.37,158.29,6.3171]
[1724700389776,20.0,158.36,158.29,6.3171]
[1724700389989,6.3162,158.33,158.28,21.6572]
[1724700390494,6.3163,158.32,158.28,15.3395]
[1724700390697,15.7882,158.35,158.27,15.7952]
[1724700390871,6.3176,158.29,158.25,6.319]
[1724700393476,6.3176,158.29,158.24,37.969487]
[1724700395284,15.792,158.31,158.24,15.851987]
[1724700395485,6.3185,158.27,158.24,15.851987]
[1724700395711,6.3187,158.26,158.24,0.827587]
[1724700395920,6.3191,158.25,158.24,0.827587]
[1724700397592,6.3187,158.26,158.24,0.827587]
[1724700398915,6.3184,158.27,158.24,0.827587]
[1724700399993,1.26071188,158.26,158.24,0.827587]
[1724700400201,20.0,158.28,158.24,0.827587]
[1724700401338,6.3191,158.25,158.24,0.827587]
[1724700407298,36.3191,158.25,158.24,0.827587]
[1724700411945,81.3191,158.25,158.24,0.827587]
[1724700412146,101.3191,158.25,158.24,0.827587]
[1724700412317,102.57981188,158.25,158.24,0.827587]
[1724700413125,101.3191,158.25,158.24,0.827587]
[1724700420850,56.3191,158.25,158.24,0.827587]
[1724700422055,50.0,158.25,158.24,0.827587]
[1724700422223,36.3191,158.25,158.24,0.827587]
[1724700423544,71.3191,158.25,158.24,0.827587]
[1724700424028,101.3191,158.25,158.24,0.827587]
[1724700432659,101.3191,158.25,158.24,8.7e-05]
[1724700432836,109.12311188,158.25,158.24,8.7e-05]
[1724700433863,101.3191,158.25,158.24,8.7e-05]
[1724700434060,56.3191,158.25,158.24,8.7e-05]
[1724700434574,36.3191,158.25,158.24,8.7e-05]
[1724700435568,30.0,158.25,158.24,8.7e-05]
[1724700435862,36.3191,158.25,158.24,8.7e-05]
[1724700436759,26.3191,158.25,158.24,8.7e-05]
[1724700437162,56.3191,158.25,158.24,8.7e-05]
[1724700438248,101.3191,158.25,158.24,8.7e-05]
[1724700441060,56.3191,158.25,158.24,8.7e-05]
[1724700441870,30.0,158.25,158.24,8.7e-05]
[1724700442071,6.3184,158.27,158.24,8.7e-05]
[1724700442546,6.3189,158.26,158.24,8.7e-05]
[1724700442963,6.3191,158.25,158.24,8.7e-05]
[1724700444079,15.7929,158.3,158.24,8.7e-05]
[1724700444367,20.0,158.29,158.24,8.7e-05]
[1724700444574,21.26071188,158.29,158.24,8.7e-05]
[1724700445261,6.3186,158.27,158.24,8.7e-05]
[1724700447361,6.3189,158.26,158.24,8.7e-05]
[1724700448578,6.3184,158.27,158.24,8.7e-05]
[1724700449878,6.3188,158.26,158.24,8.7e-05]
[1724700450362,6.3182,158.28,158.24,8.7e-05]
[1724700450552,6.3183,158.27,158.24,8.7e-05]
[1724700451262,6.3179,158.28,158.24,6.319487]
[1724700451460,6.3179,158.28,158.24,8.7e-05]
[1724700453852,26.3175,158.29,158.24,8.7e-05]
[1724700454052,21.879,158.36,158.25,15.7977]
[1724700454250,6.3169,158.31,158.26,6.3184]
[1724700454558,6.3163,158.32,158.27,22.3678]
[1724700456365,20.0,158.31,158.27,22.3678]
[1724700457967,26.3168,158.31,158.27,22.3678]
[1724700458564,15.7874,158.36,158.28,6.3177]
[1724700458773,15.784,158.39,158.29,1.26326104]
[1724700458973,15.784,158.39,158.28,45.0]
[1724700459480,15.784,158.39,158.31,6.3166]
[1724700459680,6.315,158.36,158.32,16.1048]
[1724700459985,6.3144,158.37,158.32,22.421]
[1724700460169,6.3147,158.36,158.32,22.421]
[1724700460369,6.3147,158.36,158.32,16.1048]
[1724700463662,6.3152,158.35,158.32,16.1048]
[1724700466556,6.3156,158.34,158.32,16.1048]
[1724700467462,6.3159,158.33,158.32,16.1048]
[1724700467989,6.3155,158.34,158.32,16.1048]
[1724700469570,6.3151,158.35,158.32,16.1048]
[1724700471905,6.3156,158.34,158.32,16.1048]
[1724700472415,6.3162,158.33,158.29,15.793]
[1724700472780,6.3155,158.34,158.29,15.793]
[1724700473995,6.3155,158.34,158.3,6.3168]
[1724700474513,6.3152,158.35,158.31,6.3164]
[1724700475590,6.3152,158.35,158.3,6.3169]
[1724700479290,6.3152,158.35,158.29,15.793]
[1724700479291,15.7822,158.41,158.32,6.3159]
[1724700479511,20.0,158.4,158.32,6.3159]
[1724700479886,6.3151,158.35,158.31,15.7909]
[1724700480289,6.3147,158.36,158.31,22.1072]
[1724700480812,20.0,158.4,158.31,15.7909]
[1724700480813,15.7843,158.39,158.31,15.7909]
[1724700481012,6.3159,158.33,158.28,22.4023]
[1724700481216,6.3152,158.35,158.3,6.3171]
[1724700482728,15.7862,158.37,158.29,22.1107]
[1724700483017,6.3156,158.34,158.29,22.1107]
[1724700483899,6.316,158.33,158.29,22.1107]
[1724700484099,6.3164,158.32,158.29,15.7933]
[1724700484614,6.316,158.33,158.29,15.7933]
[1724700485117,6.316,158.33,158.29,22.1107]
[1724700485632,20.0,158.4,158.31,6.3166]
[1724700485633,6.3154,158.35,158.31,6.3166]
[1724700486129,6.3154,158.35,158.32,1.26302297]
[1724700486498,6.3154,158.35,158.31,6.3166]
[1724700490004,6.3155,158.34,158.3,6.317]
[1724700495014,6.3159,158.33,158.29,22.1107]
[1724700497043,6.3156,158.34,158.29,22.1107]
[1724700497349,6.3158,158.34,158.28,16.0848]
[1724700497632,6.3158,158.34,158.29,6.3172]
[1724700499435,6.3158,158.34,158.3,1.58165938]
[1724700499634,6.3158,158.34,158.29,6.3172]
[1724700499939,6.3159,158.33,158.3,1.58166745]
[1724700500119,6.3159,158.33,158.28,38.1968]
[1724700500314,6.3159,158.33,158.29,1.5817345]
[1724700500541,6.3163,158.32,158.28,38.1968]
[1724700500729,6.3163,158.32,158.29,1.58180224]
[1724700500928,6.3163,158.32,158.28,38.1968]
[1724700501136,1.26071188,158.35,158.28,16.0848]
[1724700501315,1.26071188,158.35,158.29,1.58180224]
[1724700501316,6.3172,158.3,158.29,1.58180224]
[1724700501516,6.3175,158.29,158.25,6.319]
[1724700501733,6.3175,158.29,158.26,1.58202971]
[1724700501915,6.3175,158.29,158.27,1.58202971]
[1724700502117,6.3175,158.29,158.25,6.319]
[1724700502328,6.3171,158.3,158.26,7.9005839]
[1724700502511,6.3171,158.3,158.27,1.5819839]
[1724700502717,6.3171,158.3,158.26,6.3186]
[1724700502919,6.3171,158.3,158.27,1.58199548]
[1724700503245,6.3171,158.3,158.26,6.3186]
[1724700503445,6.3171,158.3,158.27,1.58200355]
[1724700503738,6.3171,158.3,158.26,6.3186]
[1724700503914,6.3171,158.3,158.27,1.58200337]
[1724700504114,6.3171,158.3,158.25,6.3189]
[1724700504640,6.3171,158.3,158.26,1.582004]
[1724700504855,6.3171,158.3,158.27,1.582004]
[1724700505144,6.3171,158.3,158.26,22.1149]
[1724700505345,6.3171,158.3,158.27,1.58200335]
[1724700505529,6.3171,158.3,158.26,22.1149]
[1724700505717,6.3171,158.3,158.27,1.58200402]
[1724700505918,6.3171,158.3,158.26,22.1149]
[1724700506146,6.3171,158.3,158.27,1.58200402]
[1724700506347,6.3171,158.3,158.26,22.1149]
[1724700506547,6.3171,158.3,158.27,1.5820037]
[1724700506742,6.3171,158.3,158.26,22.1149]
[1724700506932,6.3171,158.3,158.27,1.58200402]
[1724700507136,6.3171,158.3,158.26,22.1149]
[1724700507336,6.3171,158.3,158.27,1.58200402]
[1724700507636,6.3171,158.3,158.26,22.1149]
[1724700514951,15.7892,158.34,158.24,16.479787]
[1724700515255,6.3179,158.28,158.25,1.58200443]
[1724700515553,6.3176,158.29,158.24,22.798887]
[1724700516330,6.3176,158.29,158.25,1.58211643]
[1724700516652,6.3176,158.29,158.24,22.798887]
[1724700516854,6.3176,158.29,158.25,1.58212434]
[1724700517037,6.3176,158.29,158.24,22.798887]
[1724700517233,6.3176,158.29,158.25,1.58212436]
[1724700517442,6.3176,158.29,158.25,7.90111056]
[1724700517639,6.3176,158.29,158.25,6.319]
[1724700517849,6.3176,158.29,158.24,22.799087]
[1724700518163,6.3176,158.29,158.25,3.16422098]
[1724700518338,21.8687,158.32,158.24,16.479787]
[1724700518524,20.0,158.31,158.25,1.5821161]
[1724700518730,17.05381188,158.3,158.24,8.7e-05]
[1724700518929,60.7931,158.3,158.24,8.7e-05]
[1724700519231,20.0,158.29,158.24,8.7e-05]
[1724700519837,6.3191,158.25,158.24,8.7e-05]
[1724700520329,26.3191,158.25,158.24,8.7e-05]
[1724700521760,6.3191,158.25,158.24,8.7e-05]
[1724700521930,6.3188,158.26,158.24,8.7e-05]
[1724700524838,6.3191,158.25,158.24,8.7e-05]
[1724700533869,23.1609,158.31,158.24,8.7e-05]
[1724700534042,15.7912,158.32,158.24,8.7e-05]
[1724700534243,6.3177,158.29,158.25,6.319]
[1724700534458,6.3177,158.29,158.26,1.26351483]
[1724700536049,6.3177,158.29,158.25,6.319]
[1724700536253,37.9214,158.35,158.26,6.3187]
[1724700536473,53.3002,158.39,158.26,15.0613]
[1724700536667,6.3156,158.34,158.28,6.3175]
[1724700536858,6.3156,158.34,158.29,1.26323732]
[1724700537251,6.3152,158.35,158.27,28.03101848]
[1724700537450,6.3148,158.36,158.31,6.3166]
[1724700537849,6.3143,158.37,158.32,6.3162]
[1724700538444,6.3143,158.37,158.33,16.32422184]
[1724700539346,6.3139,158.38,158.34,1.26295241]
[1724700539650,6.3136,158.39,158.34,7.57835241]
[1724700540062,6.3136,158.39,158.34,6.3154]
[1724700540762,6.314,158.38,158.34,6.3154]
[1724700541460,6.3137,158.39,158.34,6.3154]
[1724700541673,6.3132,158.4,158.35,6.315]
[1724700542347,6.3137,158.39,158.34,6.3154]
[1724700543265,6.3127,158.41,158.34,15.7882]
[1724700543444,6.3127,158.41,158.35,1.26257018]
[1724700543641,6.3127,158.41,158.36,6.3146]
[1724700544063,6.3127,158.41,158.37,1.26253126]
[1724700544847,6.3127,158.41,158.36,6.3146]
[1724700546655,6.3123,158.42,158.37,6.3142]
[1724700546854,6.3123,158.42,158.37,51.3142]
[1724700548056,6.3127,158.41,158.36,28.3298]
[1724700549880,6.3131,158.4,158.36,22.1007]
[1724700550084,6.3136,158.39,158.34,6.3151]
[1724700551581,6.3136,158.39,158.35,6.315]
[1724700552575,6.3136,158.39,158.34,6.3154]
[1724700552884,6.3137,158.39,158.34,6.3154]
[1724700553072,6.3137,158.39,158.33,30.8507]
[1724700553073,6.3137,158.39,158.35,6.315]
[1724700553681,6.3137,158.39,158.35,7.57767444]
[1724700553860,6.3137,158.39,158.35,6.315]
[1724700554973,6.3137,158.39,158.33,37.1662]
[1724700555165,6.3137,158.39,158.34,6.3153]
[1724700555372,6.3139,158.38,158.34,6.3153]
[1724700560087,6.3139,158.38,158.33,37.1664]
[1724700561201,1.26071188,158.43,158.33,15.0613]
[1724700561403,6.3151,158.35,158.31,6.3166]
[1724700561611,6.3148,158.36,158.31,6.3166]
[1724700562185,6.3148,158.36,158.32,6.3163]
[1724700562589,6.3151,158.35,158.31,6.3167]
[1724700563289,6.3148,158.36,158.32,6.3162]
[1724700563893,15.7854,158.38,158.26,15.7962]
[1724700564073,6.3162,158.33,158.28,6.3175]
[1724700564405,6.3162,158.33,158.29,6.3174]
[1724700564971,6.3162,158.33,158.28,6.3178]
[1724700565393,15.7874,158.36,158.26,28.03211848]
[1724700565573,6.317,158.31,158.26,22.1149]
[1724700567192,6.3175,158.29,158.26,15.7962]
[1724700567570,6.3175,158.29,158.25,16.1674]
[1724700567776,6.3175,158.29,158.26,20.0]
[1724700567996,6.3175,158.29,158.27,1.26353824]
[1724700568200,6.3175,158.29,158.26,20.0]
[1724700568504,6.3172,158.3,158.26,20.0]
[1724700569382,6.3172,158.3,158.26,26.3186]
[1724700570200,15.0038,158.36,158.27,57.23591848]
[1724700570377,6.3159,158.33,158.27,57.23591848]
[1724700571292,6.3156,158.34,158.29,6.3174]
[1724700573612,6.3152,158.35,158.31,6.3166]
[1724700573793,6.3148,158.36,158.32,1.26304619]
[1724700575009,6.3151,158.35,158.31,6.3166]
[1724700583787,6.3151,158.35,158.3,6.317]
[1724700585922,6.316,158.33,158.29,15.7931]
[1724700586110,15.7853,158.38,158.29,15.7931]
[1724700586111,6.3155,158.34,158.29,15.7931]
[1724700587391,6.3155,158.34,158.3,6.317]
[1724700589921,6.3152,158.35,158.31,6.3167]
[1724700592120,6.3147,158.36,158.32,6.3162]
[1724700592326,6.3147,158.36,158.33,1.26307969]
[1724700592622,6.3147,158.36,158.32,6.3162]
[1724700592821,6.3144,158.37,158.33,1.26303148]
[1724700593027,6.3144,158.37,158.33,7.57863148]
[1724700593522,6.314,158.38,158.33,6.3156]
[1724700595023,22.3492,158.41,158.33,6.3156]
[1724700595024,6.3136,158.39,158.35,6.315]
[1724700597408,6.3139,158.38,158.34,6.3154]
[1724700598824,6.3139,158.38,158.33,22.1051]
[1724700599124,6.3144,158.37,158.33,22.1051]
[1724700600100,47.0834,158.44,158.33,22.1051]
[1724700600101,6.3147,158.36,158.33,15.7894]
[1724700600829,15.783,158.4,158.33,15.7894]
[1724700600830,6.3144,158.37,158.33,15.7894]
[1724700601129,6.3167,158.31,158.3,15.0922]
[1724700601309,20.0,158.36,158.29,6.3173]
[1724700601530,20.0,158.36,158.27,6.2854]
[1724700601710,6.3144,158.37,158.32,6.316]
[1724700601933,30.0,158.35,158.34,6.3155]
[1724700602125,15.7811,158.42,158.34,6.3155]
[1724700602328,6.314,158.38,158.34,6.3155]
[1724700602816,6.3135,158.39,158.34,6.3155]
[1724700603922,6.3151,158.35,158.32,15.1242]
[1724700604125,15.7837,158.4,158.32,15.1242]
[1724700604317,6.3147,158.36,158.32,15.1242]
[1724700604521,1.26071188,158.38,158.3,15.7925]
[1724700604911,6.3152,158.35,158.3,22.1092]
[1724700605728,6.3155,158.34,158.3,22.1092]
[1724700606428,6.3155,158.34,158.3,15.7925]
[1724700607233,15.7859,158.37,158.28,21.399]
[1724700607415,6.3166,158.32,158.28,15.0812]
[1724700607930,6.3159,158.33,158.28,21.399]
[1724700609111,7.57701188,158.32,158.27,22.1135]
[1724700609432,1.26071188,158.31,158.24,15.278687]
[1724700609649,6.3183,158.27,158.24,8.7e-05]
[1724700610104,6.3179,158.29,158.24,6.319387]
[1724700610311,20.0,158.33,158.24,8.7e-05]
[1724700611024,20.0,158.33,158.24,22.118087]
[1724700611025,6.3175,158.29,158.24,22.118087]
[1724700611228,6.3171,158.3,158.25,6.319]
[1724700611817,20.0,158.33,158.24,15.798687]
[1724700612118,6.3175,158.29,158.24,22.118087]
[1724700617140,6.3175,158.29,158.25,7.58267921]
[1724700617356,6.3175,158.29,158.25,6.319]
[1724700617636,6.3172,158.3,158.25,6.319]
[1724700617945,6.2608,158.35,158.26,15.7963]
[1724700618150,6.3152,158.35,158.3,6.3169]
[1724700618435,6.3152,158.35,158.31,6.3166]
[1724700618634,6.3147,158.36,158.28,12.23591848]
[1724700618847,15.7832,158.4,158.32,6.3161]
[1724700618848,6.3143,158.37,158.32,6.3161]
[1724700619147,6.625,158.43,158.34,6.3154]
[1724700619148,22.4052,158.43,158.34,6.3154]
[1724700619439,6.3131,158.4,158.35,6.315]
[1724700619752,32.0385,158.46,158.36,7.57725952]
[1724700620245,32.0385,158.46,158.37,15.7856]
[1724700620446,15.777,158.46,158.37,15.7856]
[1724700620628,6.31,158.48,158.42,6.3122]
[1724700620828,6.31,158.48,158.43,1.26221157]
[1724700621124,6.2567,158.51,158.42,6.3122]
[1724700621125,6.3104,158.47,158.42,6.3122]
[1724700621332,6.3103,158.47,158.41,6.3125]
[1724700621533,6.3109,158.46,158.41,6.3125]
[1724700621733,23.29021188,158.51,158.39,22.0962]
[1724700622245,15.7748,158.48,158.39,15.7829]
[1724700622424,65.0,158.47,158.39,15.7829]
[1724700623421,6.312,158.43,158.39,15.7829]
[1724700624073,6.3133,158.4,158.35,15.7868]
[1724700624246,15.7783,158.45,158.35,15.7868]
[1724700624551,6.3119,158.43,158.35,15.7868]
[1724700624761,20.0,158.47,158.37,12.23591848]
[1724700624924,20.0,158.47,158.42,6.3122]
[1724700624925,6.3104,158.47,158.42,6.3122]
[1724700625320,15.7716,158.52,158.43,1.2621846]
[1724700625543,6.3098,158.49,158.44,6.3114]
[1724700625750,6.3102,158.48,158.43,6.3118]
[1724700625949,15.7716,158.52,158.42,22.0928]
[1724700625950,6.3103,158.47,158.42,22.0928]
[1724700626150,6.3099,158.49,158.43,6.3117]
[1724700626448,17.03231188,158.52,158.4,22.2002]
[1724700626622,20.0,158.51,158.4,22.2002]
[1724700627159,21.26071188,158.51,158.4,22.2002]
[1724700627320,45.0,158.5,158.41,6.3125]
[1724700627520,20.0,158.49,158.41,6.3125]
[1724700628120,6.3103,158.48,158.42,6.3119]
[1724700629037,6.3104,158.47,158.42,6.3119]
[1724700629242,6.31,158.48,158.43,6.3119]
[1724700631153,31.3961,158.55,158.44,1.26212135]
[1724700631443,6.3091,158.5,158.45,6.311]
[1724700635351,6.3099,158.48,158.43,22.0907]
[1724700637565,6.3095,158.49,158.44,6.3114]
[1724700638053,6.3095,158.49,158.43,15.7792]
[1724700638259,6.3082,158.53,158.48,6.3098]
[1724700638463,6.3076,158.54,158.49,6.3095]
[1724700638638,6.3079,158.53,158.49,6.3095]
[1724700639163,6.3076,158.54,158.49,6.3095]
[1724700639665,6.3085,158.52,158.48,22.5477]
[1724700639872,6.3085,158.52,158.4,6.5088]
[1724700639873,397.0674,158.56,158.41,12.23591848]
[1724700640158,20.0,158.58,158.45,6.3111]
[1724700640159,6.3096,158.49,158.45,6.3111]
[1724700640368,6.3102,158.48,158.44,32.0165]
[1724700640838,6.3102,158.48,158.44,38.3279]
[1724700641165,6.3096,158.49,158.44,38.3279]
[1724700642159,6.3096,158.49,158.45,6.311]
[1724700644570,6.3096,158.49,158.44,38.3279]
[1724700644867,6.3101,158.48,158.44,38.3279]
[1724700645229,15.7696,158.54,158.44,38.3279]
[1724700645230,6.3096,158.49,158.44,38.3279]
[1724700647043,15.7715,158.52,158.44,32.0165]
[1724700647248,6.3099,158.48,158.44,32.0165]
[1724700647761,6.3096,158.49,158.44,38.3278]
[1724700648262,6.3096,158.49,158.45,6.3111]
[1724700651971,6.3099,158.48,158.44,38.328]
[1724700652849,6.3096,158.49,158.44,38.328]
[1724700657152,6.3096,158.49,158.45,6.3108]
[1724700659455,6.31,158.48,158.44,38.3277]
[1724700659652,6.31,158.48,158.44,32.0165]
[1724700660776,6.3096,158.49,158.45,6.3109]
[1724700661181,20.0,158.51,158.44,16.238]
[1724700661355,6.3106,158.47,158.44,16.238]
[1724700661555,20.0,158.51,158.44,16.238]
[1724700661772,20.0,158.53,158.45,46.26192001]
[1724700661972,22.3717,158.58,158.47,15.7755]
[1724700662178,15.7654,158.58,158.48,1.26157768]
[1724700662352,15.7623,158.61,158.51,15.7713]
[1724700662553,6.3062,158.58,158.53,6.3078]
[1724700662853,413.646,158.64,158.53,6.3078]
[1724700662854,6.3056,158.59,158.54,6.3073]
[1724700663075,6.3052,158.6,158.55,6.307]
[1724700663385,6.3048,158.61,158.56,6.3066]
[1724700663852,6.3052,158.6,158.55,6.3071]
[1724700665769,6.3046,158.62,158.57,6.3063]
[1724700665964,7.1311,158.64,158.59,6.3055]
[1724700666272,0.8275,158.64,158.6,6.3051]
[1724700667080,0.8275,158.64,158.62,6.3042]
[1724700667255,0.8275,158.64,158.63,21.6743]
[1724700668253,0.8275,158.64,158.63,15.3704]
[1724700670456,0.8275,158.64,158.61,15.7617]
[1724700672392,0.8275,158.64,158.61,22.0661]
[1724700672689,0.8275,158.64,158.62,6.3043]
[1724700675383,0.8275,158.64,158.61,15.7617]
[1724700675791,0.8275,158.64,158.61,22.0663]
[1724700677905,0.8275,158.64,158.61,15.7617]
[1724700678075,0.8275,158.64,158.6,12.4794]
[1724700678280,7.1311,158.64,158.6,6.305]
[1724700678509,0.8275,158.64,158.6,6.305]
[1724700678721,7.1311,158.64,158.59,22.7807]
[1724700679695,7.1311,158.64,158.58,15.7646]
[1724700679696,0.8275,158.64,158.58,15.7646]
[1724700679905,6.3047,158.61,158.56,12.8371]
[1724700680116,6.3051,158.6,158.56,6.3064]
[1724700680285,2.08821188,158.64,158.54,16.3707]
[1724700680804,6.306,158.58,158.54,22.6782]
[1724700680993,6.306,158.58,158.54,16.3707]
[1724700681507,6.306,158.58,158.53,6.3079]
[1724700683112,6.306,158.58,158.54,6.3075]
[1724700683317,6.3056,158.59,158.54,6.3075]
[1724700684411,15.7624,158.61,158.52,15.7703]
[1724700684615,20.0,158.6,158.52,15.7703]
[1724700684795,6.3059,158.58,158.54,6.3075]
[1724700685110,16.5869,158.64,158.54,15.7683]
[1724700685291,6.3048,158.61,158.57,6.3063]
[1724700685504,6.3044,158.62,158.58,6.3058]
[1724700685693,7.1313,158.64,158.59,6.3055]
[1724700686214,0.8275,158.64,158.58,15.7641]
[1724700686419,0.8275,158.64,158.6,15.7621]
[1724700686587,0.8275,158.64,158.62,6.3043]
[1724700687092,0.8275,158.64,158.61,6.3047]
[1724700688328,0.8275,158.64,158.59,45.0]
[1724700688329,0.8275,158.64,158.63,6.3039]
[1724700688492,0.8275,158.64,158.63,51.3039]
[1724700689014,0.8275,158.64,158.63,72.9136]
[1724700689890,0.8275,158.64,158.63,124.76559349]
[1724700690124,16.3552,158.75,158.67,15.7555]
[1724700690125,6.2996,158.75,158.67,15.7555]
[1724700690293,6.2996,158.75,158.7,6.3011]
[1724700690492,16.3552,158.79,158.72,6.3]
[1724700690493,6.2984,158.77,158.72,6.3]
[1724700690722,6.2984,158.77,158.73,1.25982506]
[1724700691021,6.298,158.78,158.73,6.2999]
[1724700691653,6.298,158.78,158.7,15.7525]
[1724700691818,6.298,158.78,158.73,6.3]
[1724700693190,6.298,158.78,158.7,15.7525]
[1724700693191,6.2976,158.79,158.67,31.5117]
[1724700693427,6.2976,158.79,158.74,6.2995]
[1724700694499,6.2983,158.78,158.72,22.0502]
[1724700694720,6.2983,158.78,158.73,45.0]
[1724700694888,6.2983,158.78,158.73,51.2997]
[1724700695318,0.827587,158.8,158.74,1.2594574]
[1724700695518,0.827587,158.8,158.74,17.0076574]
[1724700695735,0.827587,158.8,158.75,45.0]
[1724700695901,0.827587,158.8,158.76,1.25940364]
[1724700696101,0.827587,158.8,158.77,1.25940336]
[1724700696406,7.125087,158.8,158.75,6.2991]
[1724700696610,6.2977,158.79,158.74,22.0477]